lending/lending_fUSD_20241229
["ID","MTS","AMOUNT","RATE_DAILY","PERIOD"]
[347072987,1735489885372,-437.4,0.00013365,2]
[347072988,1735489885382,-152.0,0.00013371,3]
[347072989,1735489885392,-1000.0,0.00013442,2]
[347072990,1735489885402,-3179.22387482,0.00013445,2]
[347072991,1735489885411,-302.67,0.00013452,2]
[347072992,1735489885421,-1805.92,0.00013454,2]
[347072993,1735489885430,-5215.12,0.00013454,2]
[347072994,1735489885440,-2890.03,0.00013454,2]
[347072995,1735489885450,-4902.25,0.00013454,2]
[347072996,1735489885460,-500.0,0.00013454,2]
[347072997,1735489885470,-1801.91,0.00013454,2]
[347072998,1735489885479,-3264.87,0.00013454,2]
[347072999,1735489885489,-1526.95,0.00013454,2]
[347073000,1735489885499,-793.71,0.00013454,2]
[347073001,1735489885509,-4566.76,0.00013454,2]
[347073002,1735489885519,-4837.94,0.00013454,2]
[347073003,1735489885528,-1940.64,0.00013454,2]
[347073004,1735489885538,-1046.88,0.00013454,2]
[347073005,1735489885548,-17156.74,0.00013454,2]
[347073006,1735489885558,-10143.96,0.00013454,2]
[347073007,1735489885568,-4108.35,0.00013454,2]
[347073008,1735489885577,-2730.04,0.00013454,2]
[347073009,1735489885586,-2556.02,0.00013454,2]
[347073010,1735489885596,-1530.31,0.00013454,2]
[347073011,1735489885605,-6586.15,0.00013454,2]
[347073012,1735489885615,-4366.33,0.00013454,2]
[347073013,1735489885625,-681.34,0.00013454,2]
[347073014,1735489885635,-701.38,0.00013454,2]
[347073015,1735489885645,-2019.15,0.00013454,2]
[347073016,1735489885654,-500.0,0.00013454,2]
[347073017,1735489885664,-1697.84,0.00013454,2]
[347073018,1735489885673,-3038.02,0.00013454,2]
[347073019,1735489885683,-500.0,0.00013454,2]
[347073020,1735489885693,-852.73,0.00013454,2]
[347073021,1735489885703,-500.0,0.00013454,2]
[347073022,1735489885713,-1431.9,0.00013454,2]
[347073023,1735489885722,-500.0,0.00013454,2]
[347073024,1735489885732,-500.0,0.00013454,2]
[347073025,1735489885741,-896.87,0.00013454,2]
[347073026,1735489885751,-3588.08,0.00013454,2]
[347073027,1735489885763,-580.22,0.00013455,2]
[347073028,1735489885773,-2281.68,0.00013455,2]
[347073029,1735489885782,-1469.79,0.00013455,2]
[347073030,1735489885792,-1662.07,0.00013455,2]
[347073031,1735489885804,-500.0,0.00013455,2]
[347073032,1735489885813,-1592.56,0.00013455,2]
[347073033,1735489885823,-283.98800385,0.00013455,2]
[347073034,1735489885835,-3558.18,0.00013455,2]
[347073035,1735489885845,-643.7,0.00013455,2]
[347073036,1735489885855,-988.16,0.00013455,2]
[347073037,1735489885865,-500.0,0.00013455,2]
[347073038,1735489885874,-1652.5,0.00013455,2]
[347073039,1735489885884,-517.89,0.00013455,2]
[347073040,1735489885893,-900.7,0.00013455,2]
[347073041,1735489885904,-674.01,0.00013455,2]
[347073042,1735489885914,-5047.81,0.00013455,2]
[347073043,1735489885924,-500.0,0.00013455,2]
[347073044,1735489885934,-531.9,0.00013455,2]
[347073045,1735489885943,-603.5,0.00013455,2]
[347073046,1735489885952,-1051.42,0.00013455,2]
[347073047,1735489885962,-1024.0,0.00013455,2]
[347073048,1735489885972,-3190.14,0.00013455,2]
[347073049,1735489885982,-833.89,0.00013455,2]
[347073050,1735489885992,-1151.35,0.00013455,2]
[347073051,1735489886001,-756.97,0.00013455,2]
[347073052,1735489886013,-4647.61,0.00013455,2]
[347073053,1735489886023,-500.0,0.00013455,2]
[347073054,1735489886032,-500.0,0.00013455,2]
[347073055,1735489886042,-3472.39,0.00013455,2]
[347073056,1735489886052,-500.0,0.00013455,2]
[347073057,1735489886062,-500.0,0.00013455,2]
[347073058,1735489886072,-190.874477,0.00013455,2]
[347073059,1735489886082,-1011.11,0.00013455,2]
[347073060,1735489886092,-8442.531517,0.00013455,2]
[347073061,1735489886102,-2584.04,0.00013455,2]
[347073062,1735489886112,-8306.353808,0.00013455,2]
[347073063,1735489886121,-2630.44,0.00013455,2]
[347073064,1735489886131,-1068.1,0.00013455,2]
[347073065,1735489886141,-1103.17,0.00013455,2]
[347073066,1735489886151,-1002.9,0.00013455,2]
[347073067,1735489886160,-18294.83,0.00013455,2]
[347073068,1735489886170,-3065.29,0.00013455,2]
[347073069,1735489886179,-187.08,0.00013455,2]
[347073070,1735489886189,-1272.65,0.00013455,2]
[347073071,1735489886199,-2185.03,0.00013455,2]
[347073072,1735489886208,-9894.2,0.00013455,2]
[347073073,1735489886217,-500.0,0.00013455,2]
[347073074,1735489886226,-1886.48,0.00013455,2]
[347073075,1735489886235,-3029.99,0.00013455,2]
[347073076,1735489886245,-6076.11,0.00013455,2]
[347073077,1735489886255,-1453.24,0.00013455,2]
[347073078,1735489886265,-1635.32,0.00013455,2]
[347073079,1735489886275,-1542.14,0.00013455,2]
[347073080,1735489886284,-1891.39,0.00013455,2]
[347073081,1735489886293,-3536.31,0.00013455,2]
[347073082,1735489886304,-1072.15,0.00013455,2]
[347073083,1735489886314,-839.13,0.00013455,2]
[347073084,1735489886324,-500.0,0.00013455,2]
[347073085,1735489886334,-1665.61,0.00013455,2]
[347073086,1735489886344,-500.0,0.00013455,2]
[347073087,1735489886354,-11603.09,0.00013455,2]
[347073088,1735489886364,-1447.4,0.00013455,2]
[347073089,1735489886373,-2519.46,0.00013455,2]
[347073090,1735489886383,-1858.03,0.00013455,2]
[347073091,1735489886393,-789.12,0.00013456,2]
[347073092,1735489886402,-500.0,0.00013456,2]
[347073093,1735489886412,-640.3,0.00013456,2]
[347073094,1735489886422,-682.07,0.00013456,2]
[347073095,1735489886432,-500.0,0.00013456,2]
[347073096,1735489886442,-500.0,0.00013456,2]
[347073097,1735489886452,-500.0,0.00013456,2]
[347073098,1735489886462,-742.88,0.00013456,2]
[347073099,1735489886472,-500.0,0.00013456,2]
[347073100,1735489886482,-578.48,0.00013456,2]
[347073101,1735489886492,-969.72,0.00013456,2]
[347073102,1735489886501,-766.29,0.00013456,2]
[347073103,1735489886511,-500.0,0.00013456,2]
[347073104,1735489886521,-500.0,0.00013456,2]
[347073105,1735489886531,-500.0,0.00013456,2]
[347073106,1735489886540,-500.0,0.00013456,2]
[347073107,1735489886552,-950.22,0.00013456,2]
[347073108,1735489886561,-500.0,0.00013456,2]
[347073109,1735489886571,-500.0,0.00013456,2]
[347073110,1735489886580,-500.0,0.00013456,2]
[347073111,1735489886590,-500.0,0.00013456,2]
[347073112,1735489886600,-500.0,0.00013456,2]
[347073113,1735489886609,-912.48,0.00013456,2]
[347073114,1735489886619,-500.0,0.00013456,2]
[347073115,1735489886628,-661.25,0.00013456,2]
[347073116,1735489886638,-500.0,0.00013456,2]
[347073117,1735489886647,-500.0,0.00013456,2]
[347073118,1735489886656,-500.0,0.00013456,2]
[347073119,1735489886666,-500.0,0.00013456,2]
[347073120,1735489886675,-1210.33,0.00013456,2]
[347073121,1735489886685,-500.0,0.00013456,2]
[347073122,1735489886694,-500.0,0.00013456,2]
[347073123,1735489886704,-500.0,0.00013456,2]
[347073124,1735489886714,-500.0,0.00013456,2]
[347073125,1735489886723,-502.31,0.00013456,2]
[347073126,1735489886733,-500.0,0.00013456,2]
[347073127,1735489886743,-500.0,0.00013456,2]
[347073128,1735489886756,-500.0,0.00013456,2]
[347073129,1735489886766,-500.0,0.00013456,2]
[347073130,1735489886776,-500.0,0.00013456,2]
[347073131,1735489886785,-500.0,0.00013456,2]
[347073132,1735489886795,-500.0,0.00013456,2]
[347073133,1735489886805,-644.59,0.00013456,2]
[347073134,1735489886815,-500.0,0.00013456,2]
[347073135,1735489886826,-500.0,0.00013456,2]
[347073136,1735489886835,-500.0,0.00013456,2]
[347073137,1735489886845,-1137.54,0.00013456,2]
[347073138,1735489886855,-500.0,0.00013456,2]
[347073139,1735489886864,-500.0,0.00013456,2]
[347073140,1735489886874,-814.21,0.00013456,2]
[347073141,1735489886883,-500.0,0.00013456,2]
[347073142,1735489886892,-717.64,0.00013456,2]
[347073143,1735489886902,-1253.64,0.00013456,2]
[347073144,1735489886912,-500.0,0.00013456,2]
[347073145,1735489886923,-500.0,0.00013456,2]
[347073146,1735489886932,-508.54,0.00013456,2]
[347073147,1735489886942,-500.0,0.00013456,2]
[347073148,1735489886952,-500.0,0.00013456,2]
[347073149,1735489886961,-500.0,0.00013456,2]
[347073150,1735489886971,-500.0,0.00013456,2]
[347073151,1735489886981,-500.0,0.00013456,2]
[347073152,1735489886991,-500.0,0.00013456,2]
[347073153,1735489887000,-1130.46,0.00013456,2]
[347073154,1735489887010,-623.05,0.00013456,2]
[347073155,1735489887020,-500.0,0.00013456,2]
[347073156,1735489887029,-513.60326073,0.00013456,2]
[347073157,1735489887039,-913.53,0.00013456,2]
[347073158,1735489887048,-1090.0,0.00013456,2]
[347073159,1735489887059,-605.54,0.00013456,2]
[347073160,1735489887069,-500.0,0.00013456,2]
[347073161,1735489887079,-626.31,0.00013456,2]
[347073162,1735489887089,-500.0,0.00013456,2]
[347073163,1735489887099,-500.0,0.00013456,2]
[347073164,1735489887108,-517.37,0.00013456,2]
[347073165,1735489887119,-500.0,0.00013456,2]
[347073166,1735489887128,-500.0,0.00013456,2]
[347073167,1735489887138,-500.0,0.00013456,2]
[347073168,1735489887148,-500.0,0.00013456,2]
[347073169,1735489887158,-687.05,0.00013456,2]
[347073170,1735489887168,-500.0,0.00013456,2]
[347073171,1735489887178,-500.0,0.00013456,2]
[347073172,1735489887188,-549.65,0.00013456,2]
[347073173,1735489887198,-500.0,0.00013456,2]
[347073174,1735489887208,-500.0,0.00013456,2]
[347073175,1735489887217,-853.21,0.00013456,2]
[347073176,1735489887227,-500.0,0.00013456,2]
[347073177,1735489887237,-500.0,0.00013456,2]
[347073178,1735489887247,-500.0,0.00013456,2]
[347073179,1735489887256,-500.0,0.00013456,2]
[347073180,1735489887265,-500.0,0.00013456,2]
[347073181,1735489887275,-500.0,0.00013456,2]
[347073182,1735489887284,-619.08,0.00013456,2]
[347073183,1735489887295,-500.0,0.00013456,2]
[347073184,1735489887306,-529.86,0.00013456,2]
[347073185,1735489887316,-725.9,0.00013456,2]
[347073186,1735489887326,-500.0,0.00013456,2]
[347073187,1735489887336,-500.0,0.00013456,2]
[347073188,1735489887346,-1263.22,0.00013456,2]
[347073189,1735489887355,-500.0,0.00013456,2]
[347073190,1735489887365,-500.0,0.00013456,2]
[347073191,1735489887375,-318.07897769,0.00013456,2]
[347073192,1735489887384,-920.97,0.00013456,2]
[347073193,1735489887394,-500.0,0.00013456,2]
[347073194,1735489887404,-1244.8,0.00013456,2]
[347073195,1735489887413,-784.27,0.00013456,2]
[347073196,1735489887423,-700.7,0.00013456,2]
[347073197,1735489887432,-500.0,0.00013456,2]
[347073198,1735489887441,-483.87822685,0.00013456,2]
[347073199,1735489887451,-503.37,0.00013456,2]
[347073200,1735489887461,-500.0,0.00013456,2]
[347073201,1735489887470,-896.25,0.00013456,2]
[347073202,1735489887479,-1160.49,0.00013456,2]
[347073203,1735489887633,-500.0,0.00013456,2]
[347073204,1735489887642,-573.61,0.00013456,2]
[347073205,1735489887651,-500.0,0.00013456,2]
[347073206,1735489887662,-500.0,0.00013456,2]
[347073207,1735489887671,-1348.21,0.00013456,2]
[347073208,1735489887680,-500.0,0.00013456,2]
[347073209,1735489887689,-500.0,0.00013456,2]
[347073210,1735489887699,-500.0,0.00013456,2]
[347073211,1735489887709,-548.05,0.00013456,2]
[347073212,1735489887718,-500.0,0.00013456,2]
[347073213,1735489887727,-500.0,0.00013456,2]
[347073214,1735489887736,-500.0,0.00013456,2]
[347073215,1735489887745,-707.32,0.00013456,2]
[347073216,1735489887758,-500.0,0.00013456,2]
[347073217,1735489887768,-500.0,0.00013456,2]
[347073218,1735489887777,-761.45,0.00013456,2]
[347073219,1735489887786,-515.67,0.00013456,2]
[347073220,1735489887795,-500.0,0.00013456,2]
[347073221,1735489887806,-655.36,0.00013456,2]
[347073222,1735489887816,-500.0,0.00013456,2]
[347073223,1735489887826,-1111.12,0.00013456,2]
[347073224,1735489887835,-504.53,0.00013456,2]
[347073225,1735489887845,-939.99,0.00013456,2]
[347073226,1735489887855,-500.0,0.00013456,2]
[347073227,1735489887864,-500.0,0.00013456,2]
[347073228,1735489887874,-670.09,0.00013456,2]
[347073229,1735489887883,-500.0,0.00013456,2]
[347073230,1735489887893,-500.0,0.00013456,2]
[347073231,1735489887902,-500.0,0.00013457,2]
[347073232,1735489887912,-500.0,0.00013457,2]
[347073233,1735489887922,-500.0,0.00013457,2]
[347073234,1735489887931,-500.0,0.00013457,2]
[347073235,1735489887940,-631.92,0.00013457,2]
[347073236,1735489887950,-500.0,0.00013457,2]
[347073237,1735489887959,-635.03,0.00013457,2]
[347073238,1735489887968,-399.85,0.00013457,2]
[347073239,1735489887978,-739.18,0.00013457,2]
[347073240,1735489887987,-500.0,0.00013457,2]
[347073241,1735489887997,-1016.64,0.00013457,2]
[347073242,1735489888006,-3511.19,0.00013457,2]
[347073243,1735489888016,-831.8,0.00013457,2]
[347073244,1735489888027,-1944.21,0.00013457,2]
[347073245,1735489888037,-500.0,0.00013457,2]
[347073246,1735489888047,-500.0,0.00013457,2]
[347073247,1735489888058,-1205.91,0.00013457,2]
[347073248,1735489888068,-500.0,0.00013457,2]
[347073249,1735489888077,-3599.17,0.00013457,2]
[347073250,1735489888087,-500.0,0.00013457,7]
[347073251,1735489888096,-778.37,0.00013457,2]
[347073252,1735489888105,-764.39,0.00013457,2]
[347073253,1735489888115,-500.0,0.00013457,2]
[347073254,1735489888125,-858.22,0.00013457,2]
[347073255,1735489888134,-500.0,0.00013457,2]
[347073256,1735489888144,-1078.5,0.00013457,2]
[347073257,1735489888153,-500.0,0.00013457,2]
[347073258,1735489888163,-2340.55,0.00013457,2]
[347073259,1735489888172,-1053.53,0.00013457,2]
[347073260,1735489888182,-531.43,0.00013457,2]
[347073261,1735489888191,-500.0,0.00013457,2]
[347073262,1735489888201,-1041.24,0.00013457,2]
[347073263,1735489888211,-3755.9,0.00013457,2]
[347073264,1735489888220,-500.0,0.00013457,2]
[347073265,1735489888230,-500.0,0.00013457,2]
[347073266,1735489888240,-500.0,0.00013457,2]
[347073267,1735489888249,-679.8,0.00013457,2]
[347073268,1735489888259,-3562.83,0.00013457,2]
[347073269,1735489888269,-500.0,0.00013457,2]
[347073270,1735489888279,-662.99,0.00013457,2]
[347073271,1735489888288,-530.53,0.00013457,2]
[347073272,1735489888297,-2528.19,0.00013457,2]
[347073273,1735489888309,-500.0,0.00013457,2]
[347073274,1735489888319,-676.14,0.00013457,2]
[347073275,1735489888329,-869.7,0.00013457,2]
[347073276,1735489888339,-584.036538,0.00013457,2]
[347073277,1735489888349,-885.94,0.00013457,2]
[347073278,1735489888358,-500.0,0.00013457,2]
[347073279,1735489888368,-500.0,0.00013457,2]
[347073280,1735489888377,-1387.4,0.00013457,2]
[347073281,1735489888387,-500.0,0.00013457,2]
[347073282,1735489888396,-500.0,0.00013457,2]
[347073283,1735489888406,-707.66,0.00013457,2]
[347073284,1735489888416,-1169.27,0.00013457,2]
[347073285,1735489888426,-6099.26,0.00013457,2]
[347073286,1735489888435,-732.6,0.00013457,2]
[347073287,1735489888445,-500.0,0.00013457,2]
[347073288,1735489888454,-1183.54,0.00013457,2]
[347073289,1735489888464,-555.13,0.00013457,2]
[347073290,1735489888474,-3945.51,0.00013457,2]
[347073291,1735489888483,-500.0,0.00013457,2]
[347073292,1735489888492,-500.0,0.00013457,2]
[347073293,1735489888502,-2075.97,0.00013457,2]
[347073294,1735489888512,-654.05,0.00013457,2]
[347073295,1735489888522,-1345.89,0.00013457,2]
[347073296,1735489888531,-14284.14,0.00013457,2]
[347073297,1735489888541,-1061.45,0.00013457,2]
[347073298,1735489888550,-500.0,0.00013457,2]
[347073299,1735489888563,-500.0,0.00013457,2]
[347073300,1735489888573,-1058.29,0.00013457,2]
[347073301,1735489888582,-500.0,0.00013457,2]
[347073302,1735489888592,-853.86,0.00013457,2]
[347073303,1735489888602,-10147.36,0.00013457,2]
[347073304,1735489888611,-1697.41,0.00013457,2]
[347073305,1735489888620,-500.0,0.00013457,2]
[347073306,1735489888630,-1107.23,0.00013457,2]
[347073307,1735489888642,-547.58,0.00013457,2]
[347073308,1735489888664,-1236.84,0.00013457,2]
[347073309,1735489888680,-500.0,0.00013457,2]
[347073310,1735489888700,-1403.26,0.00013457,2]
[347073311,1735489888717,-638.45,0.00013457,2]
[347073312,1735489888735,-954.3,0.00013457,2]
[347073313,1735489888753,-749.83,0.00013457,2]
[347073314,1735489888771,-1321.25,0.00013457,2]
[347073315,1735489888791,-3600.62,0.00013457,2]
[347073316,1735489888810,-750.79,0.00013457,2]
[347073317,1735489888828,-776.0,0.00013457,2]
[347073318,1735489888847,-2295.24,0.00013457,2]
[347073319,1735489888861,-743.69,0.00013457,2]
[347073320,1735489888881,-637.29,0.00013457,2]
[347073321,1735489888894,-528.46,0.00013457,2]
[347073322,1735489888912,-16509.04,0.00013457,2]
[347073323,1735489888927,-1355.28,0.00013457,2]
[347073324,1735489888944,-2104.69,0.00013457,2]
[347073325,1735489888959,-893.81,0.00013457,2]
[347073326,1735489888974,-773.78,0.00013457,2]
[347073327,1735489888989,-890.01,0.00013457,2]
[347073328,1735489889004,-1251.31,0.00013457,2]
[347073329,1735489889019,-500.0,0.00013457,2]
[347073330,1735489889034,-505.28781327,0.00013457,2]
[347073331,1735489889049,-909.43,0.00013457,2]
[347073332,1735489889065,-500.0,0.00013457,2]
[347073333,1735489889080,-1051.79,0.00013457,2]
[347073334,1735489889097,-1988.73,0.00013457,2]
[347073335,1735489889113,-1184.67,0.00013457,2]
[347073336,1735489889129,-500.0,0.00013457,2]
[347073337,1735489889145,-2308.07,0.00013457,2]
[347073338,1735489889161,-500.0,0.00013457,2]
[347073339,1735489889177,-705.54,0.00013457,2]
[347073340,1735489889193,-500.0,0.00013457,2]
[347073341,1735489889209,-1060.41,0.00013457,2]
[347073342,1735489889226,-2299.51,0.00013457,2]
[347073343,1735489889241,-851.46,0.00013457,2]
[347073344,1735489889257,-500.0,0.00013457,2]
[347073345,1735489889272,-1853.38,0.00013457,2]
[347073346,1735489889288,-964.97,0.00013457,2]
[347073347,1735489889304,-1075.86,0.00013457,2]
[347073348,1735489889320,-500.0,0.00013457,2]
[347073349,1735489889334,-2115.26,0.00013457,2]
[347073350,1735489889350,-1352.22,0.00013457,2]
[347073351,1735489889365,-500.0,0.00013457,2]
[347073352,1735489889380,-639.4,0.00013457,2]
[347073353,1735489889395,-849.33,0.00013457,2]
[347073354,1735489889411,-3181.36,0.00013458,2]
[347073355,1735489889426,-6329.31,0.00013458,2]
[347073356,1735489889441,-151.0,0.00013458,2]
[347073357,1735489889456,-3277.49,0.00013458,2]
[347073358,1735489889470,-12312.34,0.00013458,2]
[347073359,1735489889486,-3574.32,0.00013458,2]
[347073360,1735489889500,-3943.77,0.00013458,2]
[347073361,1735489889515,-3305.08,0.00013458,2]
[347073362,1735489889529,-739.21,0.00013458,2]
[347073363,1735489889544,-7280.0,0.00013458,2]
[347073364,1735489889560,-751.24,0.00013458,2]
[347073365,1735489889574,-719.93,0.00013458,2]
[347073366,1735489889589,-1192.86,0.00013458,2]
[347073367,1735489889603,-1143.16,0.00013458,2]
[347073368,1735489889618,-2691.11,0.00013458,2]
[347073369,1735489889633,-2885.5,0.00013458,2]
[347073370,1735489889648,-2387.4,0.00013458,2]
[347073371,1735489889663,-4451.17,0.00013458,2]
[347073372,1735489889678,-2274.63,0.00013458,2]
[347073373,1735489889693,-3460.09,0.00013458,2]
[347073374,1735489889708,-922.86,0.00013458,2]
[347073375,1735489889723,-1156.67,0.00013458,2]
[347073376,1735489889738,-2396.52,0.00013458,2]
[347073377,1735489889754,-3499.32,0.00013458,2]
[347073378,1735489889769,-2481.53,0.00013458,2]
[347073379,1735489889783,-2018.38,0.00013458,2]
[347073380,1735489889798,-683.43,0.00013458,2]
[347073381,1735489889818,-5328.55,0.00013458,2]
[347073382,1735489889832,-2716.03,0.00013458,2]
[347073383,1735489889848,-3917.79,0.00013458,2]
[347073384,1735489889863,-1605.45,0.00013458,2]
[347073385,1735489889878,-45088.26,0.00013458,2]
[347073386,1735489889892,-6385.49,0.00013458,2]
[347073387,1735489889909,-28481.33,0.00013458,2]
[347073388,1735489889924,-1291.66,0.00013459,2]
[347073389,1735489889939,-1926.58,0.00013459,2]
[347073390,1735489889954,-4336.05,0.00013459,2]
[347073391,1735489889969,-5033.79,0.00013459,2]
[347073392,1735489889983,-564.3,0.00013494,2]
[347073393,1735489889998,-536.12,0.00013499,2]
[347073394,1735489890014,-1000.0,0.000135,2]
[347073395,1735489890029,-5000.0,0.000135,2]
[347073396,1735489890044,-10000.0,0.000135,5]
[347073397,1735489890059,-10000.0,0.000135,10]
[347073398,1735489890075,-150.0,0.00013501,2]
[347073399,1735489890089,-993.40221875,0.00013548,2]
[347073400,1735489890103,-661.13198528,0.00013548,2]
[347073401,1735489890118,-500.0,0.00013548,2]
[347073402,1735489890133,-150.0,0.00013548,2]
[347073403,1735489890149,-500.0,0.00013548,2]
[347073404,1735489890163,-3793.0,0.00013548,2]
[347073405,1735489890177,-2241.0,0.00013548,2]
[347073406,1735489890191,-720.6038515,0.00013548,2]
[347073407,1735489890205,-152.0,0.00013598,4]
[347073408,1735489890220,-2655.65914702,0.0001362,2]
[347073409,1735489890234,-510.97,0.0001363,2]
[347073410,1735489890248,-1306.56,0.0001363,2]
[347073411,1735489890263,-500.0,0.0001363,2]
[347073412,1735489890277,-968.82,0.0001363,2]
[347073413,1735489890291,-1952.26,0.0001363,2]
[347073414,1735489890306,-1407.8,0.0001363,2]
[347073415,1735489890320,-1583.19,0.0001363,2]
[347073416,1735489890335,-1048.33,0.0001363,2]
[347073417,1735489890559,-900.45,0.0001363,2]
[347073418,1735489890568,-669.37,0.0001363,2]
[347073419,1735489890577,-1013.65,0.0001363,2]
[347073420,1735489890587,-1333.84,0.0001363,2]
[347073421,1735489890596,-701.57,0.0001363,2]
[347073422,1735489890605,-616.81,0.0001363,2]
[347073423,1735489890615,-1458.91,0.0001363,2]
[347073424,1735489890624,-1791.59,0.0001363,2]
[347073425,1735489890633,-500.0,0.0001363,2]
[347073426,1735489890643,-500.0,0.0001363,2]
[347073427,1735489890652,-500.0,0.0001363,2]
[347073428,1735489890662,-500.0,0.0001363,2]
[347073429,1735489890671,-500.0,0.0001363,2]
[347073430,1735489890680,-500.0,0.0001363,2]
[347073431,1735489890689,-887.59,0.0001363,2]
[347073432,1735489890698,-2024.5,0.0001363,2]
[347073433,1735489890708,-1199.76,0.0001363,2]
[347073434,1735489890717,-1139.1,0.0001363,2]
[347073435,1735489890726,-500.0,0.0001363,2]
[347073436,1735489890735,-1849.25,0.0001363,2]
[347073437,1735489890745,-834.81,0.0001363,2]
[347073438,1735489890756,-1070.95,0.0001363,2]
[347073439,1735489890768,-500.0,0.0001363,2]
[347073440,1735489890778,-936.54,0.0001363,2]
[347073441,1735489890787,-2044.8,0.0001363,2]
[347073442,1735489890796,-1357.53,0.0001363,2]
[347073443,1735489890808,-852.21,0.0001363,2]
[347073444,1735489890818,-664.74,0.0001363,2]
[347073445,1735489890827,-2081.2,0.0001363,2]
[347073446,1735489890837,-500.0,0.0001363,2]
[347073447,1735489890847,-1193.34,0.0001363,2]
[347073448,1735489890856,-1949.38,0.0001363,2]
[347073449,1735489890865,-1499.21,0.0001363,2]
[347073450,1735489890875,-957.19,0.0001363,2]
[347073451,1735489890885,-1086.74,0.0001363,2]
[347073452,1735489890895,-1671.48,0.0001363,2]
[347073453,1735489890905,-1109.88,0.0001363,2]
[347073454,1735489890914,-1401.41,0.0001363,2]
[347073455,1735489890923,-2210.72,0.0001363,2]
[347073456,1735489890933,-2145.94,0.0001363,2]
[347073457,1735489890943,-2179.71,0.0001363,2]
[347073458,1735489890953,-1629.52,0.00013631,2]
[347073459,1735489890962,-1138.87,0.00013631,2]
[347073460,1735489890972,-526.0,0.00013631,2]
[347073461,1735489890982,-872.22,0.00013631,2]
[347073462,1735489890991,-1239.13,0.00013631,2]
[347073463,1735489891002,-947.43,0.00013631,2]
[347073464,1735489891012,-1354.94,0.00013631,2]
[347073465,1735489891022,-1847.85,0.00013631,2]
[347073466,1735489891033,-2077.72,0.00013631,2]
[347073467,1735489891043,-885.81,0.00013631,2]
[347073468,1735489891055,-1258.17,0.00013631,2]
[347073469,1735489891065,-1096.6,0.00013631,2]
[347073470,1735489891074,-1647.5,0.00013631,2]
[347073471,1735489891084,-936.49,0.00013631,2]
[347073472,1735489891093,-1965.02,0.00013631,2]
[347073473,1735489891103,-302.88978474,0.00013631,2]
[347073474,1735489891113,-1270.11,0.00013631,2]
[347073475,1735489891123,-735.69,0.00013631,2]
[347073476,1735489891133,-1915.81,0.00013631,2]
[347073477,1735489891143,-1704.31,0.00013631,2]
[347073478,1735489891152,-601.41,0.00013631,2]
[347073479,1735489891162,-842.62,0.00013631,2]
[347073480,1735489891172,-917.37,0.00013631,2]
[347073481,1735489891182,-1178.93,0.00013631,2]
[347073482,1735489891192,-1187.17,0.00013631,2]
[347073483,1735489891202,-500.0,0.00013631,2]
[347073484,1735489891211,-857.11,0.00013631,2]
[347073485,1735489891220,-564.3,0.00013631,2]
[347073486,1735489891230,-637.8,0.00013631,2]